Cogmind - Beta 15 *** ADVENTURER MODE // 2025.06.15 @ 03:13:17 Player: mpnni Result: Destroyed by Y-54 Guardian with Gatling Laser Performance ------------- Evolutions (3) 1500 Regions Visited (6) 1200 Robots Destroyed (124) 620 Value Destroyed (3589) 3589 Prototype IDs (2) 40 Alien Tech Used (0) 0 Bonus (298) 298 TOTAL SCORE: 7247 Bonus ------- High Alert Combat Kills 298 Cogmind --------- Core Integrity 0/700 Matter 105/300 Energy 344/350 System Corruption 2% Temperature Cool (6) Movement Core (550) Ox10 Location -7/Factory Parts ------- > --- POWER (2) -------- (None) > --- PROPULSION (3) --- (None) > --- UTILITY (5) ------ Large Storage Unit High-capacity Battery > --- WEAPON (3) ------- Heavy Missile Launcher > --- INVENTORY (15) --- Light Nuclear Core Improved Heat Sink Cooling System High-capacity Matter Pod (200) Improved Medium Armor Plating Heavy Missile Launcher Katana Katana Peak State ------------ > --- POWER ------------ Light Nuclear Core Light Nuclear Core > --- PROPULSION ------- Improved Treads Armored Treads Advanced Treads > --- UTILITY ---------- Large Storage Unit Medium Battery High-capacity Matter Pod Utility Shielding EM Disruption Field > --- WEAPON ----------- High-powered Shotgun Flak Cannon Heavy Missile Launcher > --- INVENTORY -------- Light Nuclear Core Makeshift Leg Makeshift Leg Improved Heat Sink Cooling System High-capacity Matter Pod Improved Medium Armor Plating Lightning Gun Heavy Missile Launcher Heavy Missile Launcher Heavy Missile Launcher Heavy Missile Launcher Heavy Missile Launcher Katana Katana [Rating: 37] Favorites ----------- Power Light Nuclear Core Engine Ion Engine Power Core Light Nuclear Core Propulsion Light Treads Treads Light Treads Utility Large Storage Unit Device Improved Heat Sink Storage Large Storage Unit Protection Medium Armor Plating Weapon Beam Cannon Energy Gun Particle Gun Energy Cannon Beam Cannon Ballistic Gun Assault Rifle Ballistic Cannon Flak Cannon Launcher Rocket Launcher Build | -11 -10 -10 -9 -9 -8 -7 ------- Run | Yrd Mat Min Mat Min Mat Fac Slots Evolved 6 | . . . 2 . 2 2 Power 1 | . . . . . 1 . Propulsion 1 | . . . . . . 1 Utility 3 | . . . 2 . 1 . Weapon 1 | . . . . . . 1 Parts Attached 41 | 5 10 . 7 . 2 17 Power 7 | 1 1 . 1 . 1 3 Engine 2 | 1 . . . . 1 . Core 5 | . 1 . 1 . . 3 Reactor . | . . . . . . . Propulsion 6 | 2 . . 1 . . 3 Treads 6 | 2 . . 1 . . 3 Leg . | . . . . . . . Wheel . | . . . . . . . Hover . | . . . . . . . Flight . | . . . . . . . Utility 11 | . 5 . 3 . 1 2 Device 3 | . 2 . . . . 1 Storage 4 | . 1 . 1 . 1 1 Processor . | . . . . . . . Hackware . | . . . . . . . Protection 4 | . 2 . 2 . . . Artifact . | . . . . . . . Weapon 17 | 2 4 . 2 . . 9 Energy Gun 3 | 1 1 . . . . 1 Energy Cannon 2 | . 2 . . . . . Ballistic Gun 3 | 1 1 . . . . 1 Ballistic Cannon 1 | . . . . . . 1 Launcher 8 | . . . 2 . . 6 Special Weapon . | . . . . . . . Impact Weapon . | . . . . . . . Slashing Weapon . | . . . . . . . Piercing Weapon . | . . . . . . . Special Melee Weapon . | . . . . . . . Unidentified Prototypes . | . . . . . . . Parts Lost 20 | . 1 . 1 . 1 17 Power 3 | . . . . . . 3 Propulsion 4 | . . . 1 . . 3 Utility 6 | . . . . . 1 5 Weapon 7 | . 1 . . . . 6 Highest Loss Streak 15 | . 1 . 1 . 1 15 To Critical Strikes . | . . . . . . . Average Backups 8 | . 5 8 9 10 11 10 Power 1 | . 1 1 3 4 3 1 Propulsion . | . . . . . 2 1 Utility 4 | . 3 6 5 6 4 3 Weapon 1 | . . 1 . . 1 4 Tool/Special . | . . . . . . . Unused Backups 19 | . 7 . 2 . . 10 Power 1 | . . . . . . 1 Propulsion 2 | . . . . . . 2 Utility 11 | . 7 . 1 . . 3 Weapon 5 | . . . 1 . . 4 Tool/Special . | . . . . . . . Average Slot Usage (%) 98 | . 97 100 99 100 98 95 Engine 3 | . 6 . . . 9 1 Core 10 | . 7 14 11 11 9 13 Treads 24 | . 28 28 22 22 18 22 Device 6 | . 10 5 10 . . 4 Storage 19 | . 13 14 21 22 26 22 Protection 8 | . 2 8 11 22 17 7 Energy Gun 4 | . 7 . 7 . . 1 Energy Cannon 6 | . 5 28 12 . . . Ballistic Gun 5 | . 14 . . . . 3 Ballistic Cannon 1 | . . . . . . 4 Launcher 5 | . . . 2 22 18 10 Peak Build Rating 37 | 5 13 12 19 19 23 37 Average Rating 18 | 3 9 10 16 18 21 31 On Entrance 12 | . 5 10 11 18 19 21 Naked Turns . | . . . . . . . Heaviest Build 57 | 8 32 32 46 46 53 57 Greatest Support 65 | 40 40 40 43 43 43 65 Greatest Overweight (x) 11 | . . . 1 1 1 11 Average Overweight (x) . | . . . . 1 1 . Largest Inventory Capacity 15 | 5 15 15 15 15 15 15 Average Capacity 14 | 5 14 15 15 15 15 15 Most Carried 15 | 3 12 10 14 12 14 15 Average Carried 8 | . 5 8 9 10 11 10 Final Capacity 15 | 5 15 15 15 15 15 15 Final Carried 13 | 1 9 8 10 12 13 8 Class Distribution -------------------- 75% | Mutant 24% | Tank Dominant Class ---------------- Mutant | -10/Materials Mutant | -10/Mines Mutant | -9/Materials Mutant | -9/Mines Mutant | -8/Materials Tank | -7/Factory Resources | -11 -10 -10 -9 -9 -8 -7 ----------- Run | Yrd Mat Min Mat Min Mat Fac Matter Collected 2002 | 226 683 20 125 49 119 780 Remotely . | . . . . . . . Salvage Created 2913 | . 518 79 560 46 191 1519 Parts 178 | . 31 8 43 1 12 83 Haulers Intercepted 2 | . . . . . . 2 Recyclers Shooed 1 | . . . . . . 1 Parts Field Recycled . | . . . . . . . Retrieved Matter . | . . . . . . . Parts Self-Destructed . | . . . . . . . Prevented . | . . . . . . . Kills | -11 -10 -10 -9 -9 -8 -7 ------- Run | Yrd Mat Min Mat Min Mat Fac Combat Hostiles Destroyed 79 | . 15 5 16 2 4 37 Guns 21 | . 15 . . . . 6 Cannons 15 | . . 5 3 . . 7 AOE 42 | . . . 12 2 4 24 Classes Destroyed 17 | . 2 . 6 . 2 7 Worker 15 | . . . 3 . . 12 Builder 11 | . . . 3 . 2 6 Tunneler 1 | . . . . . 1 . Hauler 2 | . . . . . . 2 Recycler 5 | . . . 1 . 1 3 Mechanic 2 | . . . . . 1 1 Operator 1 | . . . . . . 1 Watcher 8 | . . . 4 . 2 2 Swarmer 19 | . 3 5 8 . . 3 Grunt 41 | . 12 . 4 2 2 21 Brawler 1 | . . . 1 . . . Duelist 2 | . . . . . . 2 Protector 2 | . . . . . . 2 Sentry 5 | . . . 3 . 2 . Specialist 1 | . . . . . . 1 Hunter 4 | . . . . . . 4 Programmer 4 | . . . . . . 4 Best Kill Streak 13 | . 6 3 13 2 5 11 Combat Bots Only 9 | . 6 3 9 2 2 5 Max Kills in Single Turn 8 | . 2 2 8 1 2 8 Gunslinging 1 | . 1 . . . . . Exploded 6 | . . . 6 1 1 4 Melee . | . . . . . . . Uniques/NPCs Destroyed . | . . . . . . . Combat | -11 -10 -10 -9 -9 -8 -7 -------- Run | Yrd Mat Min Mat Min Mat Fac Hostile Shots Fired 550 | . 66 41 38 4 16 385 Missed 189 | . 21 12 16 1 5 134 Hits 361 | . 45 29 22 3 11 251 Melee 2 | . . . 2 . . . Projectile 359 | . 45 29 20 3 11 251 Critical Strikes 9 | . . . 1 . 1 7 Actively Blocked 1 | . . . . . . 1 Damage Taken 3901 | . 435 177 294 107 167 2721 Core 882 | . 71 26 38 18 24 705 Absorbed by Shields . | . . . . . . . Redirected to Shielding 190 | . . 14 . 21 30 125 Ignored by Resistances 1151 | . 131 58 87 30 46 799 Regen/Repaired (Parts) 149 | . . . . . . 149 Core Remaining (%) 85 | 100 . 61 . 86 95 . Volleys Fired 200 | . 53 15 25 4 19 84 Largest 3 | . 2 2 2 1 2 3 Hottest 125 | . 85 120 125 33 66 115 Shots Fired 305 | . 97 28 40 4 21 115 Gun 148 | . 97 . 7 . . 44 Cannon 76 | . . 28 23 . . 25 Launcher 81 | . . . 10 4 21 46 Special . | . . . . . . . Kinetic 113 | . 71 . . . . 42 Thermal 84 | . 26 28 30 . . . Explosive 81 | . . . 10 4 21 46 Electromagnetic 27 | . . . . . . 27 Robot Hit Streak 26 | . 10 3 26 3 12 16 Robot Miss Streak 5 | . 4 2 2 1 1 5 Penetration Max . | . . . . . . . Secondary Targets 3 | . 3 . . . . . Max Gunslinging Chain 1 | . 1 . . . . . Shots Hit Robots 225 | . 74 12 32 3 17 87 Core Hits 244 | . 32 5 34 4 23 146 Critical Kills 1 | . . . 1 . . . Critical Parts Destroyed . | . . . . . . . Critical Strikes 1 | . . . 1 . . . Meltdown 1 | . . . 1 . . . Melee Attacks . | . . . . . . . Impact . | . . . . . . . Slashing . | . . . . . . . Piercing . | . . . . . . . Sneak Attacks . | . . . . . . . Combat Hostiles . | . . . . . . . Follow-up Attacks . | . . . . . . . Damage Inflicted 10562 | . 887 225 1435 202 947 6866 Guns 1610 | . 875 . 116 . . 619 Cannons 1025 | . . 225 314 . . 486 Explosions 7915 | . . . 1005 202 947 5761 Melee . | . . . . . . . Ramming 12 | . 12 . . . . . Kinetic 1387 | . 553 . . . . 834 Thermal 1635 | . 322 225 430 . . 658 Explosive 7029 | . . . 1005 202 947 4875 Electromagnetic 499 | . . . . . . 499 Impact . | . . . . . . . Slashing . | . . . . . . . Piercing . | . . . . . . . Highest Corruption 2 | . 1 1 . . . 2 Average Corruption 1 | . 1 1 . . . 1 Corruption Purged . | . . . . . . . Corruption Blocked . | . . . . . . . Effects 14 | . 3 7 . . . 4 Message Errors 6 | . 1 3 . . . 2 Matter Fused 2 | . . 2 . . . . Heat Flow Errors 2 | . . 1 . . . 1 Data Loss (minor) 2 | . . 1 . . . 1 Data Loss (major) 1 | . 1 . . . . . Alerts 1 | . 1 . . . . . Overload Shots . | . . . . . . . Overflow Damage 330 | . . . 14 2 28 286 Projectiles . | . . . . . . . Explosions 330 | . . . 14 2 28 286 Melee . | . . . . . . . Knockbacks 15 | . . . . . . 15 Impact . | . . . . . . . Kinetic 15 | . . . . . . 15 Secondary . | . . . . . . . Self-Inflicted Damage 389 | . . . 45 75 41 228 Shots 17 | . . . 2 4 2 9 Rammed 2 | . 2 . . . . . Targets Rammed 2 | . 2 . . . . . Kicked . | . . . . . . . Crushed . | . . . . . . . Highest Temperature 459 | . 30 459 204 15 27 274 Average Temperature 80 | . 13 181 65 10 15 61 Received Heat Transfer 1260 | . 282 . 114 27 90 747 Effects 7 | . . 7 . . . . Shutdowns 2 | . . 2 . . . . Interference 1 | . . 1 . . . . Damage (major) 4 | . . 4 . . . . Siege Activations . | . . . . . . . Martial Activations . | . . . . . . . Shielding Activations . | . . . . . . . Robots Disrupted . | . . . . . . . Combat Hostiles . | . . . . . . . Robots Corrupted . | . . . . . . . Combat Hostiles . | . . . . . . . Parts Fried 1 | . . . . . . 1 Impact Corruptions . | . . . . . . . Robots Melted 1 | . . . 1 . . . Combat Hostiles 1 | . . . 1 . . . Parts Melted 8 | . 2 1 5 . . . Heat Transferred 2735 | . 729 481 925 . . 600 Parts Sabotaged . | . . . . . . . Parts Stolen . | . . . . . . . Parts Stripped . | . . . . . . . Power Chain Reactions 2 | . . . . . . 2 Alert | -11 -10 -10 -9 -9 -8 -7 ------- Run | Yrd Mat Min Mat Min Mat Fac Maximum Alert Level 2 | . . . 1 . . 2 Low Security (%) 73 | 100 100 100 94 100 100 4 Level 1 13 | . . . 5 . . 46 Level 2 12 | . . . . . . 48 Level 3 . | . . . . . . . Level 4 . | . . . . . . . Level 5 . | . . . . . . . High Security . | . . . . . . . Max Security . | . . . . . . . Peak Influence 616 | . 150 70 351 116 121 616 Initial 115 | . . . . 115 28 37 Average 118 | . 28 11 21 89 41 370 Influence Increases 2818 | . 390 120 532 61 266 1449 Destroy 0b10 Robot/C 1540 | . 300 100 320 40 80 700 Destroy 0b10 Robot/NC 235 | . . . 55 . 35 145 Destroy Leader 350 | . 90 20 78 10 34 118 Disable Machine 288 | . . . . . 9 279 Destroy Structure 375 | . . . 64 11 108 192 Lose Combat Pursuer 30 | . . . 15 . . 15 Influence Decreases 2202 | . 390 120 181 326 255 930 Entered New Map 354 | . . . . 236 58 60 Time Decay 1658 | . 380 120 171 90 197 700 Lost Part 190 | . 10 . 10 . . 170 Squads Dispatched 18 | . 5 . . . 1 12 Investigation 10 | . 5 . . . 1 4 Extermination 3 | . . . . . . 3 Reinforcement 5 | . . . . . . 5 Assault . | . . . . . . . Garrison . | . . . . . . . Intercept . | . . . . . . . Searches Triggered . | . . . . . . . Construction Impeded 3 | . . . . . . 3 Haulers Reinforced 1 | . . . . . . 1 Active Scanning Responses . | . . . . . . . Cargo Convoy Interrupts 1 | . . . . . . 1 Stealth | -11 -10 -10 -9 -9 -8 -7 --------- Run | Yrd Mat Min Mat Min Mat Fac Distress Signals 6 | . . . 1 . 1 4 Communications Jammed . | . . . . . . . Distress Signals . | . . . . . . . Times Spotted 107 | . 19 6 20 2 12 48 Peak Tracking Total 11 | . 3 3 8 2 3 11 Tactical Retreats 2 | . . . 1 . . 1 Traps | -11 -10 -10 -9 -9 -8 -7 ------- Run | Yrd Mat Min Mat Min Mat Fac Traps Triggered 7 | . 3 . 2 . 1 1 Indirectly . | . . . . . . . Trap Hack Attempts . | . . . . . . . Triggered . | . . . . . . . Disarmed . | . . . . . . . Reprogrammed . | . . . . . . . Reused . | . . . . . . . Traps Extracted . | . . . . . . . Installed . | . . . . . . . Triggered . | . . . . . . . Machines | -11 -10 -10 -9 -9 -8 -7 ---------- Run | Yrd Mat Min Mat Min Mat Fac Machines Disabled 35 | . . . 3 . 1 31 Max in Single Turn 21 | . . . 3 . 1 21 Machines Repaired . | . . . . . . . Machines Dismantled . | . . . . . . . Machines Sabotaged . | . . . . . . . Overloaded Fab Kills . | . . . . . . . Hacking | -11 -10 -10 -9 -9 -8 -7 --------- Run | Yrd Mat Min Mat Min Mat Fac Machines Accessed 16 | . 7 . 3 . . 6 Terminals 9 | . 4 . 3 . . 2 Fabricators 1 | . . . . . . 1 Repair Stations 2 | . 1 . . . . 1 Recycling Units 3 | . 2 . . . . 1 Scanalyzers . | . . . . . . . Garrison Access 1 | . . . . . . 1 Total Hacks 49 | . 22 . 7 . . 20 Successful 29 | . 19 . 4 . . 6 Failed 20 | . 3 . 3 . . 14 Catastrophic 1 | . . . . . . 1 Database Lockouts . | . . . . . . . Manual . | . . . . . . . Terminals 24 | . 11 . 7 . . 6 Fabricators 3 | . . . . . . 3 Repair Stations 3 | . 1 . . . . 2 Recycling Units 15 | . 10 . . . . 5 Scanalyzers . | . . . . . . . Garrison Access 4 | . . . . . . 4 Terminal Hacks 14 | . 9 . 4 . . 1 Record 11 | . 6 . 4 . . 1 Prototype ID Bank 1 | . 1 . . . . . Recycling Unit Index 1 | . 1 . . . . . Zone Layout 1 | . 1 . . . . . Fabricator Hacks . | . . . . . . . Repair Station Hacks 3 | . 1 . . . . 2 Scan Component 2 | . 1 . . . . 1 Repair 1 | . . . . . . 1 Recycling Unit Hacks 12 | . 9 . . . . 3 Recycle Component 7 | . 5 . . . . 2 Process 2 | . 1 . . . . 1 Report Inventory 1 | . 1 . . . . . Retrieve Matter 1 | . 1 . . . . . Retrieve Components 1 | . 1 . . . . . Scanalyzer . | . . . . . . . Garrison Access Hacks . | . . . . . . . Unauthorized Hacks . | . . . . . . . Terminals . | . . . . . . . Fabricators . | . . . . . . . Repair Stations . | . . . . . . . Recycling Units . | . . . . . . . Scanalyzers . | . . . . . . . Garrison Access . | . . . . . . . Data Cores Recovered . | . . . . . . . Used . | . . . . . . . Hacking Detections 13 | . 5 . 2 . . 6 Full Trace Events 7 | . 3 . . . . 4 Feedback Events 1 | . 1 . . . . . Corruption 1 | . 1 . . . . . Feedback Blocked . | . . . . . . . Robot Schematics Acquired . | . . . . . . . Robots Built . | . . . . . . . Authchips . | . . . . . . . Time . | . . . . . . . Total Robot Build Rating . | . . . . . . . Part Schematics Acquired . | . . . . . . . Parts Built . | . . . . . . . Authchips . | . . . . . . . Time . | . . . . . . . Total Part Build Rating . | . . . . . . . Parts Repaired 1 | . . . . . . 1 Time 32 | . . . . . . 32 Parts Recycled 7 | . 5 . . . . 2 Recycled Matter 326 | . 149 . . . . 177 Retrieved Matter 321 | . 321 . . . . . Retrieved Components . | . . . . . . . Parts Scanalyzed . | . . . . . . . Part Schematics Acquired . | . . . . . . . Parts Damaged . | . . . . . . . Bothacking | -11 -10 -10 -9 -9 -8 -7 ------------ Run | Yrd Mat Min Mat Min Mat Fac Used RIF Installer . | . . . . . . . Robots Hacked . | . . . . . . . Non-combat . | . . . . . . . Combat . | . . . . . . . Robot Hacks Applied . | . . . . . . . Relay Couplers Released . | . . . . . . . Fabnet Peak Effective % . | . . . . . . . Robots Rewired . | . . . . . . . Allies Hacked . | . . . . . . . Hacks Repelled . | . . . . . . . Allies | -11 -10 -10 -9 -9 -8 -7 -------- Run | Yrd Mat Min Mat Min Mat Fac Total Allies . | . . . . . . . Largest Group . | . . . . . . . Highest-Rated Group . | . . . . . . . Highest-Rated Ally . | . . . . . . . Total Orders . | . . . . . . . Ally Attacks . | . . . . . . . Total Damage . | . . . . . . . Kills . | . . . . . . . Allies Corrupted . | . . . . . . . Allies Melted . | . . . . . . . Intel | -11 -10 -10 -9 -9 -8 -7 ------- Run | Yrd Mat Min Mat Min Mat Fac Active Infowar (turns) . | . . . . . . . Robot Analysis Total . | . . . . . . . Derelict Logs Recovered . | . . . . . . . Drone Launches . | . . . . . . . Drone Recoveries . | . . . . . . . Exploration | -11 -10 -10 -9 -9 -8 -7 ------------- Run | Yrd Mat Min Mat Min Mat Fac Turns Passed 5353 | 67 1541 586 1013 190 548 1408 Spaces Moved 2671 | 43 848 339 444 76 209 712 Core 16 | 11 . . . . . 5 Treads 2655 | 32 848 339 444 76 209 707 Legs . | . . . . . . . Wheels . | . . . . . . . Hover . | . . . . . . . Flight . | . . . . . . . Fastest Speed 50 | 50 160 160 160 240 240 158 Average Speed 176 | 131 160 160 208 240 240 163 Slowest Speed 600 | 160 160 160 240 240 240 600 Overloaded Moves . | . . . . . . . Propulsion Burnouts . | . . . . . . . Robots Hopped . | . . . . . . . Potential Cave-ins . | . . . . . . . Cave-ins Triggered . | . . . . . . . Exploration Rate (%) 35 | 4 96 46 33 20 22 24 Regions Visited 6 Branch Regions 2 Pre-discovered Areas . | . . . . . . . Known Exits Taken . | . . . . . . . Unknown Exits Taken 6 | 1 1 1 1 1 1 . Scrap Searched . | . . . . . . . Spaces Dug . | . . . . . . . Terrain Destroyed 484 | . . . 61 23 162 238 Melee . | . . . . . . . Projectile . | . . . . . . . AOE 484 | . . . 61 23 162 238 Terrain Rammed . | . . . . . . . Walls Destroyed . | . . . . . . . Machines Disabled . | . . . . . . . Actions | -11 -10 -10 -9 -9 -8 -7 --------- Run | Yrd Mat Min Mat Min Mat Fac Total 3013 | 53 943 356 497 81 236 847 Wait . | . . . . . . . Move 2665 | 42 847 338 443 75 208 712 Hop . | . . . . . . . Pick Up 62 | 6 21 . 11 2 4 18 Fast Attach . | . . . . . . . Attach 47 | 5 9 1 8 . 4 20 Detach 10 | . 4 1 2 . 1 2 Swap 4 | . 2 . 2 . . . Drop 23 | . 5 1 6 . . 11 Fire 200 | . 53 15 25 4 19 84 Melee . | . . . . . . . Ram . | . . . . . . . Kick . | . . . . . . . Crush 2 | . 2 . . . . . Escape Stasis . | . . . . . . . Rewire . | . . . . . . . Trap . | . . . . . . . Miscellaneous . | . . . . . . . Route ------- -11/Scrapyard -10/Materials (discovered 4 exits: *Mat x3 / [*Min]) -10/Mines -9/Materials (discovered 2 exits: [*Mat] / [*Min]) -9/Mines -8/Materials -7/Factory History --------- Turn | Location | Event 3 | -11/Scrapyard | Discovered new exit (range 15) 68 | -11/Scrapyard | Entered Materials 215 | -10/Materials | Discovered new exit (range 9) 300 | -10/Materials | Build established: Mutant 883 | -10/Materials | Discovered new exit (range 4) 1004 | -10/Materials | Discovered new exit (range 8) 1131 | -10/Materials | Discovered new exit (range 13) 1609 | -10/Materials | Entered Mines 1812 | -10/Mines | Discovered new exit (range 8) 2195 | -10/Mines | Entered Materials 2195 | -9/Materials | Evolved 2 slots: Utility x2 2826 | -9/Materials | Discovered new exit (range 9) 3144 | -9/Materials | Discovered new exit (range 7) 3172 | -9/Materials | Destroyed 9 combat bots 3208 | -9/Materials | Entered Mines 3328 | -9/Mines | Discovered new exit (range 9) 3334 | -9/Mines | A Derelict revealed a hidden shortcut to a safe place 3398 | -9/Mines | Entered Materials 3398 | -8/Materials | Evolved 2 slots: Power x1, Utility x1 3904 | -8/Materials | Discovered new exit (range 12) 3946 | -8/Materials | Entered Factory 3946 | -7/Factory | Evolved 2 slots: Propulsion x1, Weapon x1 4254 | -7/Factory | Build established: Tank 4456 | -7/Factory | Repaired Imp. Treads 5260 | -7/Factory | Cargo convoy interrupted 5328 | -7/Factory | Core integrity fell below 50% 5338 | -7/Factory | Core integrity fell below 20% 5354 | -7/Factory | Destroyed by Y-54 Guardian with Gatling Laser Last Messages --------------- dispatching reinforcements to local area. K-01 Serf collects debris. The unstable cave ceiling collapses. Slug penetrates Wall. Critical hit (Burn: +37). Destroyed Lgt. Nuclear Core. G-47 Trooper destroyed. Slug penetrates Wall. G-47 Trooper destroyed. Destroyed Structural Scanner. Destroyed Welding Torch. K-01 Serf collects debris. G-47 Trooper destroyed. U-05 Engineer lays Concrete. Penetrated by Slug. Hvy. Missile Launcher destroyed. U-05 Engineer lays Concrete. K-01 Serf collects debris. U-05 Engineer lays Concrete. K-01 Serf collects debris. Map ----- +----------------------------------------------------+ | ?????????????????????????????????????????????????? | | ?????????????????????????????????????????????????? | | ?????????????????????????????????????????????????? | | ?????????????????????????????????????????????????? | | ?????????????????????????????????????????????????? | | ?????????????????????????????????????????????????? | | ?????????????????????????????????????????????????? | | ?????????????????????????????????????????????????? | | ?????????????????????????????????????????????????? | | ??????????????????????????## ???????????????????? | | ?????????????????????????# ????????????????? | | ??????????????????????? #######?????????? | | ???????????????????????? #???????? | | ???????????????????????? #???????? | | ???????????????????????? !! #???????? | | ???????????????????????? !! #???????? | | ????????????????????????# ! ######??? | | ???????????????????????? #??? | | ????????????????????????# % !* ###? | | ???????????????????????? % !* ? | | ????????????????????????? !* ? | | ????????????????????????? | | ?????????????????????????? % // | | ?????????????????????????? / | | ???????????????????######## k | | ???????????????????+ t @ h * | | ???????????????????########### Y u | | ????????????????????# % | | ?????????????????? | | ?????????????????? # | | ????????????????? # # # ## | | ????????????????? # #? | | ?????????????????? + # #? | | ?????????????????? # % ######## ? ?? | | ??????????????????? #[ #???????? ?? #?? | | ??????????????????? #???????????? ??? | | ??????????????????? # #???????????????? | | ???????????????????## #??? #?????????? | | ????????????????????# #? #?????????? | | ????????????????????#######+####+## #?????????? | | ????????????????????????# * #?????????? | | ????????????????????????# = #?????????? | | ????????????????????????# == ##+##+#?????????? | | ??????????????????####### == #???????????????? | | ??????????? != = #???????????????? | | ??????????????????####### #???????????????? | | ????????????????????# # # % +???????????????? | | ????????????????????# %## ###???????????????? | | ????????????????????# # #????????????????? | | ????????????????????# # ##????????????????? | +----------------------------------------------------+ Best States ------------- Heat Dissipation 45 Energy Generation 23 Energy Capacity 470 Matter Stores 500 Matter Capacity 500 Sight Range 16 Terrain Scan Density 10 Armor Coverage 225 Resistance: KI 20 Resistance: TH 20 Resistance: EX 20 Resistance: EM 20 Resistance: I 20 Resistance: S 20 Resistance: P 20 Propulsion Shielding 33 Utility Shielding 33 Weapon Shielding 66 Evasion (%) 40 Recoil Reduction 3 Offensive Hacking 10 Item Schematics ----------------- None Robot Schematics ------------------ None Fabricated ------------ Nothing Repaired ---------- Imp. Treads | 3% | -7/Factory Alien Tech Used ----------------- None Achievements -------------- It Was An Accident, I Swear It's Just You Librarian Party Time Quick And Dirty Storm Trooper Challenges ------------ None Game ------ Seed BladeMappingRipteeth Manual? 0 Play Time 00:47:00 Cumulative 2.9 hours Start 2025.06.15 @ 02:26:33 End 2025.06.15 @ 03:13:17 Sessions 1 Manual Loads 0 Difficulty Adventurer Special Mode None Game No. 4 Rogue 0 Adventurer 4 Explorer 0 Win Type - Total 0 Types 0/0/0/0/0/0/0/0/0/0 Lore% 2 Gallery% 7 Achievement% 9 Wizard Run 0 Options --------- Layout 1 ASCII 0 Keyboard 0 Movement Arrows Keybinds 0 Fullscreen 1 Font 24/Cog Map View 50x35 Zoom Use 0% Tactical HUD 0 Map Filters NONE Filters NONE Steam 1 RUN: 08b1223c-ec96-4b89-be85-9f849682fe37